bitfinex-derivatives/quotes_BTCF0:USTF0_20210105
["timestamp","ask_amount","ask_price","bid_price","bid_amount"]
[1609864605995,0.01794205,32401.0,32364.0,0.27027608]
[1609864606495,0.13632608,32386.0,32385.0,0.13632608]
[1609864611700,0.14826,32391.0,32385.0,0.13632608]
[1609864611899,0.01821732,32401.0,32385.0,0.13632608]
[1609864612499,0.13632608,32387.0,32385.0,0.13632608]
[1609864616501,0.13632608,32391.0,32385.0,0.13632608]
[1609864619405,0.13632608,32391.0,32385.0,0.22812608]
[1609864619605,0.13632608,32391.0,32385.0,0.13632608]
[1609864620506,0.13632608,32386.0,32385.0,0.13632608]
[1609864620706,0.24663608,32386.0,32385.0,0.13632608]
[1609864625812,0.24663608,32386.0,32347.0,2.24010457]
[1609864626012,0.24663608,32386.0,32354.0,0.14751]
[1609864626212,0.24663608,32386.0,32347.0,2.24010457]
[1609864626415,0.092,32385.0,32347.0,2.24010457]
[1609864626613,0.13632608,32368.0,32363.0,0.13632608]
[1609864628214,0.10991,32375.0,32363.0,0.13632608]
[1609864628615,0.13632608,32373.0,32371.0,0.13632608]
[1609864632322,0.10991,32375.0,32371.0,0.13632608]
[1609864632522,0.11031,32386.0,32372.0,4.4616]
[1609864632722,0.0273837,32389.0,32372.0,4.4616]
[1609864632921,0.01203172,32390.0,32372.0,0.12439]
[1609864633121,0.13617332,32392.0,32372.0,0.12439]
[1609864633321,0.13617332,32392.0,32372.0,0.21579]
[1609864633322,0.00147332,32392.0,32372.0,0.21579]
[1609864633525,0.62233968,32394.0,32391.0,4.2577]
[1609864633723,0.62233968,32394.0,32391.0,4.37502]
[1609864633924,0.59283968,32394.0,32391.0,4.37502]
[1609864634124,0.83735993,32397.0,32391.0,4.37502]
[1609864634528,0.83735993,32397.0,32396.0,0.13632608]
[1609864634729,1.0123222,32400.0,32396.0,0.13632608]
[1609864635127,0.9480222,32400.0,32396.0,0.13632608]
[1609864635327,0.2942222,32400.0,32396.0,0.13632608]
[1609864635528,1.20687976,32404.0,32396.0,0.13632608]
[1609864635728,1.03027976,32404.0,32396.0,0.23012608]
[1609864635927,1.01567976,32404.0,32396.0,0.23012608]
[1609864636327,0.62127976,32404.0,32396.0,0.23012608]
[1609864636527,0.46097976,32404.0,32403.0,0.13632608]
[1609864636728,0.28897976,32404.0,32403.0,0.90958608]
[1609864636929,0.01707976,32404.0,32403.0,0.90958608]
[1609864637130,1.51666851,32408.0,32403.0,0.90958608]
[1609864637327,1.07436851,32408.0,32403.0,0.90958608]
[1609864637528,0.77626851,32408.0,32403.0,0.90958608]
[1609864637730,0.77626851,32408.0,32403.0,1.00238608]
[1609864638127,0.69246851,32408.0,32403.0,1.00238608]
[1609864638327,0.38126851,32408.0,32403.0,1.00238608]
[1609864638528,0.08016851,32408.0,32407.0,0.13632608]
[1609864638928,0.00536851,32408.0,32407.0,0.13632608]
[1609864639330,1.79654471,32411.0,32407.0,0.13632608]
[1609864639530,0.1807,32433.0,32407.0,0.13632608]
[1609864639729,0.1807,32433.0,32407.0,0.22822608]
[1609864640229,0.13632608,32445.0,32408.0,2.24203368]
[1609864640429,0.13632608,32445.0,32426.0,3.5785]
[1609864640629,0.13632608,32445.0,32444.0,0.13632608]
[1609864641029,0.1,32467.0,32445.0,4.6604]
[1609864641632,0.1,32467.0,32444.0,0.13632608]
[1609864641830,0.1,32467.0,32424.0,0.13775]
[1609864641831,3.786,32459.0,32427.0,4.4412]
[1609864642030,0.0911,32458.0,32427.0,4.4412]
[1609864642430,3.89036,32459.0,32427.0,4.4412]
[1609864642632,0.13632608,32441.0,32435.0,0.13632608]
[1609864643030,0.24796608,32441.0,32435.0,0.13632608]
[1609864643531,0.11164,32441.0,32435.0,0.13632608]
[1609864644430,0.11856,32449.0,32435.0,0.13632608]
[1609864644631,0.11856,32449.0,32448.0,0.13632608]
[1609864647636,0.14869,32478.0,32448.0,4.15352608]
[1609864647836,1.00835212,32490.0,32448.0,0.13632608]
[1609864648035,1.00835212,32490.0,32467.0,3.8049]
[1609864648436,1.98120897,32515.0,32467.0,3.8049]
[1609864648636,0.13632608,32498.0,32496.0,0.13632608]
[1609864648836,0.27077608,32498.0,32496.0,0.13632608]
[1609864649837,0.13445,32498.0,32496.0,0.13632608]
[1609864651540,0.12165,32508.0,32496.0,0.13632608]
[1609864651741,0.12165,32508.0,32497.0,4.7843]
[1609864652542,0.12165,32508.0,32507.0,0.13632608]
[1609864653643,0.12165,32508.0,32507.0,3.61792608]
[1609864654442,0.2859,32528.0,32507.0,3.61792608]
[1609864654642,0.2678,32528.0,32527.0,0.13632608]
[1609864654842,0.1928,32528.0,32527.0,0.13632608]
[1609864655043,0.1928,32528.0,32527.0,5.14182608]
[1609864655245,0.1928,32528.0,32527.0,0.13632608]
[1609864655644,0.1928,32528.0,32527.0,4.27442608]
[1609864657651,0.1928,32528.0,32527.0,0.13632608]
[1609864658948,0.1928,32528.0,32527.0,5.15182608]
[1609864660350,0.1472,32528.0,32527.0,5.15182608]
[1609864660553,0.09048,32537.0,32527.0,5.15182608]
[1609864660752,0.09048,32537.0,32527.0,5.25279608]
[1609864660953,0.14594,32544.0,32527.0,0.23729608]
[1609864661553,0.14594,32544.0,32536.0,3.5964]
[1609864661955,0.14594,32544.0,32527.0,0.23729608]
[1609864662656,0.14594,32544.0,32543.0,0.13632608]
[1609864663054,0.14594,32544.0,32543.0,0.64052608]
[1609864663454,3.8081,32595.0,32543.0,0.64052608]
[1609864664457,0.091,32596.0,32543.0,0.13632608]
[1609864664656,0.091,32596.0,32575.0,0.13632608]
[1609864665057,0.0919,32593.0,32575.0,0.13632608]
[1609864665257,0.0923,32591.0,32575.0,0.13632608]
[1609864665458,0.0924,32586.0,32534.0,0.09357]
[1609864665660,0.22048,32586.0,32534.0,0.09357]
[1609864666260,0.22048,32586.0,32531.0,3.4492]
[1609864666760,0.22048,32586.0,32553.0,0.13632608]
[1609864668161,0.12808,32586.0,32553.0,0.13632608]
[1609864668360,0.12808,32586.0,32558.0,3.5052]
[1609864668660,0.12808,32586.0,32569.0,0.13632608]
[1609864669062,0.12808,32586.0,32569.0,0.80862608]
[1609864669266,0.12808,32586.0,32569.0,0.13632608]
[1609864669463,0.12808,32586.0,32580.0,3.8796]
[1609864669864,8e-05,32586.0,32580.0,3.8796]
[1609864670465,0.99789762,32646.0,32580.0,3.8796]
[1609864670662,0.99789762,32646.0,32623.0,0.13632608]
[1609864671065,4.3844,32654.0,32623.0,0.13632608]
[1609864671264,4.4759,32654.0,32608.0,4.7957]
[1609864671464,4.61714,32654.0,32608.0,4.7957]
[1609864672265,4.52564,32654.0,32608.0,4.7957]
[1609864672464,0.45980603,32645.0,32608.0,4.7957]
[1609864672665,0.59565603,32645.0,32633.0,0.13632608]
[1609864673264,0.13585,32645.0,32633.0,0.13632608]
[1609864674666,0.13632608,32634.0,32624.0,3.7284]
[1609864674867,0.24881608,32634.0,32601.0,0.14223]
[1609864675068,0.24881608,32634.0,32609.0,4.4928]
[1609864676669,0.24881608,32634.0,32633.0,0.13632608]
[1609864677571,0.11249,32634.0,32633.0,0.13632608]
[1609864678373,0.11249,32634.0,32633.0,0.63172608]
[1609864678973,0.11249,32634.0,32633.0,0.13632608]
[1609864679173,0.11249,32634.0,32610.0,4.8315]
[1609864679974,0.27217608,32645.0,32610.0,4.8315]
[1609864680781,0.13632608,32633.0,32624.0,0.13632608]
[1609864680976,0.23671608,32633.0,32624.0,0.13632608]
[1609864682077,0.23671608,32633.0,32610.0,4.8315]
[1609864682678,0.10039,32633.0,32618.0,0.13632608]
[1609864683079,0.10039,32633.0,32610.0,4.8315]
[1609864685881,0.10039,32633.0,32557.0,0.092]
[1609864686080,0.11846,32633.0,32582.0,4.3967]
[1609864686681,0.13632608,32594.0,32585.0,0.13632608]
[1609864688482,0.13632608,32594.0,32557.0,4.6051]
[1609864688680,4.6429,32597.0,32572.0,0.13632608]
[1609864689480,4.6429,32597.0,32557.0,4.6051]
[1609864690080,0.11218,32600.0,32542.0,0.09498]
[1609864690283,3.5279,32597.0,32542.0,0.09498]
[1609864690682,0.13632608,32576.0,32572.0,0.13632608]
[1609864690881,0.23916608,32576.0,32572.0,0.13632608]
[1609864691083,0.23916608,32576.0,32542.0,0.09498]
[1609864692584,0.23916608,32576.0,32528.0,4.8234]
[1609864692784,0.13632608,32556.0,32552.0,0.13632608]
[1609864692983,0.25745608,32556.0,32552.0,0.13632608]
[1609864695087,0.25745608,32556.0,32528.0,4.8234]
[1609864695287,0.25745608,32556.0,32501.0,2.08315828]
[1609864696087,4.3127,32566.0,32500.0,4.9899]
[1609864696287,0.09018,32556.0,32500.0,5.10899]
[1609864696687,0.09018,32556.0,32548.0,0.13632608]
[1609864697088,0.09018,32556.0,32520.0,0.14181]
[1609864698792,0.13632608,32545.0,32543.0,0.13632608]
[1609864698990,0.13632608,32545.0,32520.0,0.14181]
[1609864699190,0.26912608,32545.0,32520.0,0.14181]
[1609864700290,0.26912608,32545.0,32512.0,3.963]
[1609864700691,0.1328,32545.0,32534.0,0.13632608]
[1609864702506,0.2983,32555.0,32534.0,0.13632608]
[1609864702702,0.2983,32555.0,32550.0,0.13632608]
[1609864702895,0.2983,32555.0,32526.0,4.6394]
[1609864703996,0.2983,32555.0,32527.0,0.0933]
[1609864704396,0.2983,32555.0,32526.0,4.6394]
[1609864704796,0.13632608,32554.0,32550.0,0.13632608]
[1609864705598,0.2983,32555.0,32550.0,0.13632608]
[1609864705797,0.09018,32556.0,32550.0,0.13632608]
[1609864705998,0.10284,32576.0,32550.0,0.13632608]
[1609864706198,0.2994,32585.0,32550.0,0.13632608]
[1609864706400,5.4161,32585.0,32550.0,0.13632608]
[1609864706798,5.4161,32585.0,32544.0,0.13181]
[1609864706999,5.56134,32585.0,32544.0,0.13181]
[1609864707200,5.56134,32585.0,32533.0,5.1092]
[1609864707399,0.44464,32585.0,32526.0,0.1069]
[1609864707600,4.1592,32582.0,32526.0,0.1069]
[1609864707799,0.0922,32581.0,32520.0,7.09299942]
[1609864707999,0.0921,32580.0,32520.0,7.09299942]
[1609864708801,0.13632608,32552.0,32550.0,0.13632608]
[1609864709002,0.27408608,32552.0,32550.0,0.13632608]
[1609864709602,0.27408608,32552.0,32526.0,2.15374968]
[1609864710602,0.13776,32552.0,32526.0,2.15374968]
[1609864710801,0.13776,32552.0,32546.0,0.13632608]
[1609864712702,0.13776,32552.0,32551.0,0.13632608]
[1609864712904,0.0933,32572.0,32551.0,0.13632608]
[1609864713105,0.0929,32576.0,32531.0,0.14143]
[1609864714704,0.13632608,32532.0,32529.0,0.13632608]
[1609864714903,0.23664608,32532.0,32522.0,2.17791198]
[1609864715405,0.10032,32532.0,32522.0,2.17791198]
[1609864715705,0.10032,32532.0,32518.0,2.18179458]
[1609864716708,0.10032,32532.0,32531.0,0.13632608]
[1609864718407,0.10032,32532.0,32513.0,0.13549]
[1609864718606,0.10032,32532.0,32505.0,2.29569855]
[1609864719910,4.4066,32544.0,32505.0,2.29569855]
[1609864720412,4.4066,32544.0,32506.0,2.19806446]
[1609864720812,0.13632608,32529.0,32527.0,0.13632608]
[1609864721015,0.22680608,32529.0,32527.0,0.13632608]
[1609864722312,0.09048,32529.0,32527.0,0.13632608]
[1609864723413,0.11678,32537.0,32527.0,0.13632608]
[1609864724915,0.11678,32537.0,32536.0,0.13632608]
[1609864725614,0.11678,32537.0,32513.0,4.8081]
[1609864726816,0.11678,32537.0,32529.0,0.13632608]
[1609864727917,0.093,32536.0,32509.0,2.20273168]
[1609864728117,3.715,32528.0,32509.0,2.20273168]
[1609864728317,3.8565,32528.0,32509.0,2.20273168]
[1609864728518,3.8565,32528.0,32509.0,2.18793168]
[1609864728716,3.8565,32528.0,32509.0,2.11123168]
[1609864728916,0.13632608,32510.0,32509.0,2.00223168]
[1609864729117,0.28474608,32510.0,32509.0,1.90223168]
[1609864731118,0.28474608,32510.0,32497.0,2.38838429]
[1609864731319,5.35674608,32510.0,32497.0,2.38838429]
[1609864731919,5.35674608,32510.0,32468.0,2.38176205]
[1609864732922,5.35674608,32510.0,32498.0,0.13632608]
[1609864732923,5.22042,32510.0,32498.0,0.13632608]
[1609864733122,0.14842,32510.0,32498.0,0.13632608]
[1609864734323,0.1415,32528.0,32498.0,0.13632608]
[1609864734725,3.8281,32534.0,32498.0,0.13632608]
[1609864734923,3.8281,32534.0,32504.0,0.13632608]
[1609864736825,0.13632608,32505.0,32504.0,0.13632608]
[1609864737227,0.24315608,32505.0,32504.0,0.13632608]
[1609864737630,0.10683,32505.0,32504.0,0.13632608]
[1609864738229,0.14497,32512.0,32504.0,0.13632608]
[1609864738827,0.14497,32512.0,32511.0,0.13632608]
[1609864739029,0.13632608,32526.0,32511.0,0.25974608]
[1609864739430,4.5221,32548.0,32511.0,0.25974608]
[1609864740830,4.5221,32548.0,32528.0,0.13632608]
[1609864741232,0.2874,32552.0,32528.0,0.13632608]
[1609864742435,0.2898,32553.0,32528.0,0.13632608]
[1609864743234,0.2898,32553.0,32543.0,0.13632608]
[1609864744939,0.2898,32553.0,32548.0,0.13632608]
[1609864746839,0.13632608,32549.0,32548.0,0.13632608]
[1609864747039,0.26570608,32549.0,32548.0,0.13632608]
[1609864747842,0.26570608,32549.0,32527.0,0.12612]
[1609864748042,0.26570608,32549.0,32518.0,0.1483]
[1609864748444,0.26570608,32549.0,32517.0,4.6544]
[1609864748844,0.12938,32549.0,32537.0,0.13632608]
[1609864749043,0.12938,32549.0,32517.0,4.6544]
[1609864750846,0.12938,32549.0,32534.0,0.13632608]
[1609864751747,0.70128,32549.0,32517.0,4.6544]
[1609864751946,0.12938,32549.0,32504.0,2.23627677]
[1609864752148,4.7685,32540.0,32504.0,2.23627677]
[1609864752347,4.88125,32540.0,32504.0,2.23627677]
[1609864752851,4.88125,32540.0,32520.0,0.13632608]
[1609864753048,4.88125,32540.0,32504.0,2.23627677]
[1609864753451,4.88125,32540.0,32500.0,0.10395]
[1609864753650,4.88125,32540.0,32497.0,4.034]
[1609864754051,4.88125,32540.0,32497.0,6.27487365]
[1609864754953,4.88125,32540.0,32523.0,0.13632608]
[1609864755553,0.11275,32540.0,32523.0,0.13632608]
[1609864756856,0.13632608,32528.0,32523.0,0.13632608]
[1609864757356,0.13632608,32528.0,32511.0,0.12165]
[1609864757555,0.13632608,32528.0,32503.0,0.12301]
[1609864757755,0.13632608,32528.0,32502.0,2.24147951]
[1609864758458,0.13632608,32528.0,32503.0,2.24188387]
[1609864759058,0.12088,32531.0,32510.0,0.13632608]
[1609864762363,5.0412,32532.0,32510.0,0.13632608]
[1609864763063,5.0412,32532.0,32516.0,0.13632608]
[1609864764264,0.092,32531.0,32516.0,0.13632608]
[1609864764465,0.092,32531.0,32499.0,4.8073]
[1609864764665,0.19523,32531.0,32499.0,4.8073]
[1609864765065,0.19523,32531.0,32510.0,0.13632608]
[1609864765466,0.10323,32531.0,32510.0,0.13632608]
[1609864766567,0.19613,32531.0,32510.0,0.13632608]
[1609864766768,0.10323,32531.0,32510.0,0.13632608]
[1609864766969,0.13632608,32511.0,32510.0,0.13632608]
[1609864769272,0.13632608,32511.0,32489.0,2.23910607]
[1609864769472,4.0273,32507.0,32489.0,2.23910607]
[1609864770074,0.13632608,32511.0,32489.0,2.22900607]
[1609864770273,4.3564,32495.0,32489.0,2.22900607]
[1609864770473,0.13715,32495.0,32489.0,2.19160607]
[1609864770674,0.13715,32495.0,32489.0,2.09910607]
[1609864770876,5.1338,32494.0,32489.0,2.09910607]
[1609864771075,0.13632608,32490.0,32489.0,2.09910607]
[1609864772278,0.13632608,32490.0,32489.0,1.75420607]
[1609864772475,5.25682608,32490.0,32489.0,1.75420607]
[1609864772875,5.25682608,32490.0,32489.0,0.44050607]
[1609864773077,5.25682608,32490.0,32482.0,2.42765305]
[1609864773277,0.13632608,32490.0,32482.0,2.42765305]
[1609864773477,0.13632608,32490.0,32482.0,2.38225305]
[1609864773876,0.13632608,32490.0,32457.0,0.2763]
[1609864774275,3.5151,32482.0,32457.0,0.2763]
[1609864774675,3.65874,32482.0,32457.0,0.2763]
[1609864774876,0.14364,32482.0,32457.0,0.2763]
[1609864775077,0.14364,32482.0,32472.0,0.13632608]
[1609864776477,0.13715,32495.0,32472.0,0.13632608]
[1609864776675,0.53261341,32498.0,32472.0,0.13632608]
[1609864776875,0.53261341,32498.0,32472.0,0.75662608]
[1609864777077,4.43348214,32507.0,32492.0,0.13632608]
[1609864777276,0.53418214,32507.0,32492.0,0.13632608]
[1609864777876,0.2731,32510.0,32492.0,0.13632608]
[1609864778876,0.53459329,32522.0,32492.0,0.13632608]
[1609864779077,0.53459329,32522.0,32503.0,0.13632608]
[1609864780582,0.53480135,32526.0,32503.0,0.13632608]
[1609864781079,0.13632608,32511.0,32510.0,0.13632608]
[1609864781481,0.22860608,32511.0,32510.0,0.13632608]
[1609864783080,0.22860608,32511.0,32488.0,3.7507]
[1609864785085,0.22860608,32511.0,32509.0,0.13632608]
[1609864785686,0.13632608,32511.0,32509.0,0.13632608]
[1609864787486,0.13632608,32511.0,32499.0,0.10967]
[1609864787686,0.26360608,32511.0,32492.0,0.13317]
[1609864789087,0.26360608,32511.0,32510.0,0.13632608]
[1609864791486,0.26360608,32511.0,32492.0,0.13317]
[1609864792690,0.26360608,32511.0,32491.0,4.6801]
[1609864793088,0.26360608,32511.0,32505.0,0.13632608]
[1609864793089,0.12728,32511.0,32505.0,0.13632608]
[1609864793289,0.091,32524.0,32505.0,0.13632608]
[1609864795189,0.13632608,32506.0,32505.0,0.13632608]
[1609864795390,0.13632608,32506.0,32491.0,4.6801]
[1609864795591,0.23811608,32506.0,32491.0,4.6801]
[1609864795793,0.23811608,32506.0,32483.0,0.14438]
[1609864795991,0.23811608,32506.0,32475.0,0.2843]
[1609864797093,0.0917,32505.0,32489.0,0.13632608]
[1609864798194,0.6489,32502.0,32489.0,0.13632608]
[1609864799093,0.6489,32502.0,32494.0,0.13632608]
[1609864799695,0.6489,32502.0,32475.0,0.2843]
[1609864800495,0.74,32502.0,32475.0,0.2843]
[1609864800897,0.6489,32502.0,32475.0,0.2843]
[1609864801096,0.6489,32502.0,32489.0,0.13632608]
[1609864801296,0.10179,32506.0,32489.0,0.13632608]
[1609864801498,0.2757,32512.0,32492.0,4.7533]
[1609864802096,0.64306058,32516.0,32492.0,4.7533]
[1609864803100,0.64306058,32516.0,32506.0,0.13632608]
[1609864803497,0.64306058,32516.0,32492.0,4.7533]
[1609864803698,0.79169058,32516.0,32492.0,4.7533]
[1609864805098,0.79169058,32516.0,32510.0,0.13632608]
[1609864807100,0.14863,32516.0,32515.0,0.13632608]
[1609864808902,0.13632608,32517.0,32515.0,0.13632608]
[1609864819820,0.13632608,32517.0,32516.0,0.5535]
[1609864823525,0.13632608,32517.0,32515.0,0.13632608]
[1609864823726,0.24247608,32517.0,32515.0,0.13632608]
[1609864827633,0.10615,32517.0,32515.0,0.13632608]
[1609864828834,0.13558,32524.0,32515.0,0.13632608]
[1609864829436,0.13558,32524.0,32513.0,4.5052]
[1609864829437,0.13558,32524.0,32523.0,0.13632608]
[1609864829935,0.02717613,32528.0,32526.0,3.792]
[1609864831035,0.47333986,32531.0,32526.0,3.792]
[1609864831235,0.42683986,32531.0,32526.0,3.792]
[1609864831435,0.23083986,32531.0,32530.0,0.13632608]
[1609864831939,0.13632608,32547.0,32530.0,0.13632608]
[1609864832337,0.13632608,32547.0,32536.0,4.2434]
[1609864832536,0.78353117,32554.0,32536.0,4.2434]
[1609864833039,0.0934,32559.0,32536.0,4.2434]
[1609864833237,0.78601541,32561.0,32536.0,4.2434]
[1609864833437,0.13632608,32550.0,32548.0,0.13632608]
[1609864833838,0.25394608,32550.0,32548.0,0.13632608]
[1609864834440,0.11762,32550.0,32548.0,0.13632608]
[1609864835440,0.25394608,32550.0,32548.0,0.13632608]
[1609864835639,0.25394608,32550.0,32549.0,0.0931]
[1609864837546,0.25394608,32550.0,32548.0,0.13632608]
[1609864837747,0.25394608,32550.0,32548.0,0.08802608]
[1609864837949,0.25394608,32550.0,29512.0,0.01298961]
[1609864838148,0.25394608,32550.0,32526.0,4.8518]
[1609864839351,0.11762,32550.0,32539.0,0.13632608]
[1609864839754,0.0909,32561.0,32539.0,0.13632608]
[1609864841453,0.13632608,32540.0,32539.0,0.13632608]
[1609864842855,0.13632608,32540.0,32534.0,4.3109]
[1609864843355,0.13632608,32535.0,32534.0,4.3109]
[1609864845358,0.13632608,32535.0,32534.0,4.44722608]
[1609864847463,0.13632608,32535.0,32534.0,0.13632608]
[1609864847665,0.13632608,32535.0,32515.0,0.14959]
[1609864847863,0.26785608,32535.0,32515.0,0.14959]
[1609864848063,4.9722,32528.0,32506.0,0.13558]
[1609864848264,0.10334,32528.0,32503.0,2.23376217]
[1609864848465,3.5706,32517.0,32503.0,2.23376217]
[1609864849065,3.5706,32517.0,32503.0,1.92776217]
[1609864850569,3.5706,32517.0,32503.0,1.90416217]
[1609864850769,0.13104,32518.0,32503.0,1.90416217]
[1609864851168,0.0912,32517.0,32503.0,1.90416217]
[1609864851369,0.13104,32518.0,32513.0,0.13632608]
[1609864852570,4.9913,32540.0,32513.0,0.13632608]
[1609864853171,0.19684,32528.0,32513.0,0.13632608]
[1609864853370,0.13632608,32514.0,32513.0,0.13632608]
[1609864853971,0.13632608,32514.0,32505.0,0.14918]
[1609864854172,0.13632608,32514.0,32498.0,2.56806832]
[1609864854973,0.13632608,32514.0,32498.0,0.147]
[1609864855172,0.13632608,32514.0,32494.0,4.9514]
[1609864855375,0.107,32519.0,32510.0,0.13632608]
[1609864857375,0.107,32519.0,32516.0,0.13632608]
[1609864858779,0.297,32527.0,32516.0,0.13632608]
[1609864859379,0.297,32527.0,32520.0,0.13632608]
[1609864860278,0.3884,32527.0,32520.0,0.13632608]
[1609864860480,0.3884,32527.0,32503.0,5.14018]
[1609864860682,0.3884,32527.0,32503.0,0.10358]
[1609864860881,0.3884,32527.0,32496.0,0.09148]
[1609864861081,4.5668,32517.0,32486.0,3.8302]
[1609864861280,4.68385,32517.0,32486.0,3.8302]
[1609864861479,4.68385,32517.0,32509.0,0.13632608]
[1609864861680,4.77735,32517.0,32509.0,0.13632608]
[1609864862181,4.68385,32517.0,32509.0,0.13632608]
[1609864862482,0.11705,32517.0,32509.0,0.13632608]
[1609864862983,0.11705,32517.0,32499.0,4.2273]
[1609864863186,0.21025,32517.0,32499.0,4.2273]
[1609864863384,0.21025,32517.0,32504.0,0.13632608]
[1609864863884,3.5357,32514.0,32492.0,0.0973]
[1609864864083,0.21025,32517.0,32492.0,0.0973]
[1609864864284,4.5521,32503.0,32485.0,0.11594]
[1609864864484,4.6956,32503.0,32485.0,0.11594]
[1609864865085,4.6956,32503.0,32485.0,2.35493149]
[1609864865486,0.0925,32502.0,32490.0,0.13632608]
[1609864865688,4.6956,32503.0,32490.0,0.13632608]
[1609864865885,4.6956,32503.0,32485.0,0.11594]
[1609864866587,0.0928,32502.0,32485.0,0.11594]
[1609864867490,0.13632608,32486.0,32472.0,0.13632608]
[1609864868290,0.7184,32485.0,32472.0,0.13632608]
[1609864868489,0.85498,32485.0,32472.0,0.13632608]
[1609864869589,0.13632608,32473.0,32472.0,0.13632608]
[1609864869989,0.85498,32485.0,32472.0,0.13632608]
[1609864870689,0.13658,32485.0,32472.0,0.13632608]
[1609864871491,0.13632608,32476.0,32472.0,0.13632608]
[1609864879596,0.13632608,32476.0,32464.0,0.12595]
[1609864879996,0.13632608,32476.0,32447.0,6.40323219]
[1609864881300,0.13632608,32476.0,32447.0,4.1703]
[1609864881497,4.3274,32477.0,32468.0,0.13632608]
[1609864882398,0.14218,32478.0,32468.0,0.13632608]
[1609864882598,4.0407,32486.0,32468.0,0.13632608]
[1609864883298,4.0407,32486.0,32460.0,0.09255]
[1609864883498,4.0407,32486.0,32466.0,0.13632608]
[1609864885506,0.13632608,32467.0,32466.0,0.13632608]
[1609864890411,0.13986,32478.0,32466.0,0.13632608]
[1609864890811,0.2729,32491.0,32473.0,3.579]
[1609864891211,0.09905,32492.0,32473.0,3.579]
[1609864891411,0.52625552,32507.0,32473.0,3.579]
[1609864891614,0.52625552,32507.0,32493.0,0.13632608]
[1609864892013,0.52562152,32505.0,32493.0,0.13632608]
[1609864892211,0.092,32504.0,32493.0,0.13632608]
[1609864892412,0.63898152,32505.0,32493.0,0.13632608]
[1609864892611,0.63898152,32505.0,32487.0,3.7589]
[1609864892813,0.11336,32505.0,32487.0,3.7589]
[1609864893514,0.11336,32505.0,32494.0,0.13632608]
[1609864894315,0.20576,32505.0,32494.0,0.13632608]
[1609864894814,0.20576,32505.0,32489.0,0.11657]
[1609864895616,0.13632608,32490.0,32489.0,0.11657]
[1609864897316,0.13632608,32490.0,32479.0,0.13716]
[1609864897617,0.0927,32501.0,32485.0,0.13632608]
[1609864898716,0.0927,32501.0,32481.0,0.12423]
[1609864899520,0.6892,32501.0,32481.0,0.12423]
[1609864899717,0.6892,32501.0,32483.0,0.13632608]
[1609864899919,0.6892,32501.0,32476.0,4.1689]
[1609864900118,0.0927,32501.0,32471.0,0.11041]
[1609864900321,4.5097,32497.0,32471.0,0.11041]
[1609864900518,4.60832,32497.0,32462.0,3.6566]
[1609864900718,0.2812,32496.0,32462.0,3.6566]
[1609864901520,0.3726,32496.0,32462.0,3.6566]
[1609864901721,0.3726,32496.0,32473.0,0.13632608]
[1609864903723,0.3726,32496.0,32477.0,0.13632608]
[1609864903924,0.3726,32496.0,32469.0,0.13745]
[1609864905625,0.13632608,32471.0,32469.0,0.13745]
[1609864907329,0.13632608,32471.0,32468.0,0.13632608]
[1609864910835,0.13632608,32471.0,32446.0,2.23907586]
[1609864911035,3.519,32463.0,32446.0,2.23907586]
[1609864911235,0.24366608,32471.0,32446.0,2.23907586]
[1609864911435,0.24366608,32471.0,32446.0,2.36399586]
[1609864911636,0.10734,32471.0,32447.0,2.24098045]
[1609864911835,3.7954,32453.0,32447.0,2.24098045]
[1609864912638,3.7954,32453.0,32439.0,0.13991]
[1609864913638,3.8877,32453.0,32442.0,0.13632608]
[1609864913837,3.7954,32453.0,32442.0,0.13632608]
[1609864914738,3.7954,32453.0,32431.0,0.12648]
[1609864914940,3.8866,32453.0,32431.0,0.12648]
[1609864915739,0.13632608,32432.0,32431.0,0.12648]
[1609864916940,0.09803,32449.0,32431.0,0.12648]
[1609864917643,0.2833,32452.0,32447.0,0.13632608]
[1609864918043,0.2833,32452.0,32438.0,0.1285]
[1609864918445,4.9634,32449.0,32438.0,0.1285]
[1609864918844,5.05621,32449.0,32438.0,0.1285]
[1609864919046,5.05621,32449.0,32434.0,4.3411]
[1609864919645,5.19253608,32449.0,32448.0,0.13632608]
[1609864919846,5.19253608,32449.0,32434.0,4.3411]
[1609864920046,0.22913608,32449.0,32434.0,4.3411]
[1609864921045,0.22913608,32449.0,32431.0,0.12648]
[1609864921246,0.22913608,32449.0,32426.0,3.8894]
[1609864921444,0.22913608,32449.0,32422.0,2.24062393]
[1609864921646,0.22913608,32449.0,32447.0,0.13632608]
[1609864924348,0.22913608,32449.0,32434.0,0.09888]
[1609864925650,0.22913608,32449.0,32445.0,0.13632608]
[1609864927853,0.22913608,32449.0,32434.0,0.09888]
[1609864928053,0.22913608,32449.0,32427.0,3.8877]
[1609864929756,0.0925,32448.0,32445.0,0.13632608]
[1609864929956,0.09281,32449.0,32445.0,0.13632608]
[1609864930257,0.11847,32457.0,32445.0,0.13632608]
[1609864930656,4.6284,32458.0,32445.0,0.13632608]
[1609864931757,0.13632608,32446.0,32445.0,0.13632608]
[1609864936764,0.13632608,32446.0,32433.0,0.11431]
[1609864936963,0.13632608,32446.0,32423.0,3.6583]
[1609864937164,0.0911,32445.0,32420.0,2.23833934]
[1609864937364,4.0611,32439.0,32419.0,2.2385158]
[1609864937764,4.0611,32439.0,32424.0,0.13632608]
[1609864939566,0.11678,32445.0,32424.0,0.13632608]
[1609864939765,0.11678,32445.0,32423.0,0.10144]
[1609864939766,0.0934,32444.0,32430.0,0.13632608]
[1609864940566,0.5011,32443.0,32430.0,0.13632608]
[1609864941069,0.0929,32442.0,32423.0,0.10144]
[1609864941269,3.763,32437.0,32423.0,0.10144]
[1609864941870,0.13632608,32424.0,32423.0,0.10144]
[1609864943068,0.13632608,32424.0,32421.0,0.13632608]
[1609864943671,0.13632608,32424.0,32422.0,3.866]
[1609864943870,0.09606,32438.0,32422.0,3.866]
[1609864944070,0.09606,32438.0,32421.0,0.13632608]
[1609864944270,0.09606,32438.0,32432.0,4.7511]
[1609864944469,0.12518,32452.0,32432.0,4.7511]
[1609864944869,0.2778,32462.0,32432.0,4.7511]
[1609864945070,0.2778,32462.0,32427.0,0.14432]
[1609864945269,0.40158,32462.0,32443.0,4.5202]
[1609864945469,0.12378,32462.0,32443.0,4.5202]
[1609864945669,0.12378,32462.0,32443.0,4.66462]